fUST/lending_fUST_20240521
["ID","MTS","AMOUNT","RATE_DAILY","PERIOD"]
[327633962,1716261061454,-1413.37,0.00047945,45]
[327633963,1716261061463,-500.0,0.00047945,45]
[327633964,1716261061472,-500.0,0.00047945,45]
[327633965,1716261061481,-500.0,0.00047945,45]
[327633966,1716261061491,-587.89,0.00047945,45]
[327633967,1716261061500,-564.42,0.00047945,45]
[327633968,1716261061509,-500.0,0.00047945,45]
[327633969,1716261061519,-500.0,0.00047945,45]
[327633970,1716261061528,-637.03,0.00047945,45]
[327633971,1716261061538,-800.14,0.00047945,45]
[327633972,1716261061548,-1132.13,0.00047945,45]
[327633973,1716261061557,-500.0,0.00047945,45]
[327633974,1716261061566,-978.09,0.00047945,45]
[327633975,1716261061576,-500.0,0.00047945,30]
[327633976,1716261061585,-656.24,0.00047945,45]
[327633977,1716261061595,-500.0,0.00047945,45]
[327633978,1716261061604,-500.0,0.00047945,45]
[327633979,1716261061614,-1795.64,0.00047945,45]
[327633980,1716261061623,-500.0,0.00047945,45]
[327633981,1716261061632,-720.01,0.00047945,45]
[327633982,1716261061642,-500.0,0.00047945,2]
[327633983,1716261061651,-3000.0,0.00047945,30]
[327633984,1716261061660,-1695.89,0.00047945,45]
[327633985,1716261061669,-596.02,0.00047945,45]
[327633986,1716261061678,-500.0,0.00047945,45]
[327633987,1716261061687,-500.0,0.00047945,45]
[327633988,1716261061696,-604.29,0.00047945,45]
[327633989,1716261061705,-206.89212,0.00048089,2]
[327633990,1716261061714,-500.0,0.00048219,46]
[327633991,1716261061724,-500.0,0.00048219,46]
[327633992,1716261061733,-663.57,0.00048219,46]
[327633993,1716261061742,-616.2,0.00048219,46]
[327633994,1716261061752,-500.0,0.00048219,46]
[327633995,1716261061761,-500.0,0.00048219,46]
[327633996,1716261061770,-500.0,0.00048219,46]
[327633997,1716261061779,-500.0,0.00048219,46]
[327633998,1716261061790,-500.0,0.00048219,46]
[327633999,1716261061799,-500.0,0.00048219,46]
[327634000,1716261061809,-500.0,0.00048219,46]
[327634001,1716261061818,-500.0,0.00048219,46]
[327634002,1716261061827,-500.0,0.00048219,46]
[327634003,1716261061837,-500.0,0.00048219,46]
[327634004,1716261061846,-500.0,0.00048219,46]
[327634005,1716261061855,-500.0,0.00048219,46]
[327634006,1716261061864,-518.73,0.00048219,46]
[327634007,1716261061873,-500.0,0.00048219,46]
[327634008,1716261061883,-404.44229003,0.00048219,46]
[327634009,1716261061892,-500.0,0.00048219,46]
[327634010,1716261061902,-500.0,0.00048219,46]
[327634011,1716261061911,-684.09,0.00048219,46]
[327634012,1716261061921,-636.08,0.00048219,46]
[327634013,1716261061930,-500.0,0.00048219,46]
[327634014,1716261061939,-500.0,0.00048219,46]
[327634015,1716261061948,-808.17,0.00048219,46]
[327634016,1716261061958,-519.27,0.00048219,46]
[327634017,1716261061967,-500.0,0.00048219,46]
[327634018,1716261061976,-872.22,0.00048219,46]
[327634019,1716261061985,-500.0,0.00048219,46]
[327634020,1716261061994,-631.23,0.00048219,46]
[327634021,1716261062003,-500.0,0.00048219,46]
[327634022,1716261062012,-500.0,0.00048219,46]
[327634023,1716261062021,-500.0,0.00048219,46]
[327634024,1716261062030,-687.83,0.00048219,46]
[327634025,1716261062040,-500.0,0.00048219,46]
[327634026,1716261062048,-563.08,0.00048219,46]
[327634027,1716261062058,-673.46,0.00048219,46]
[327634028,1716261062067,-500.0,0.00048219,46]
[327634029,1716261062080,-582.03,0.00048219,46]
[327634030,1716261062089,-500.0,0.00048219,46]
[327634031,1716261062099,-500.0,0.00048219,46]
[327634032,1716261062108,-770.72,0.00048219,46]
[327634033,1716261062117,-500.0,0.00048219,46]
[327634034,1716261062127,-582.81,0.00048219,46]
[327634035,1716261062136,-613.54,0.00048219,46]
[327634036,1716261062145,-500.0,0.00048219,46]
[327634037,1716261062156,-500.0,0.00048219,46]
[327634038,1716261062166,-500.0,0.00048219,46]
[327634039,1716261062175,-696.81,0.00048219,46]
[327634040,1716261062184,-500.0,0.00048219,46]
[327634041,1716261062194,-616.93,0.00048219,46]
[327634042,1716261062203,-602.57,0.00048219,46]
[327634043,1716261062212,-500.0,0.00048219,46]
[327634044,1716261062221,-538.15,0.00048219,46]
[327634045,1716261062230,-778.24,0.00048219,46]
[327634046,1716261062240,-590.97,0.00048219,46]
[327634047,1716261062249,-644.31,0.00048219,46]
[327634048,1716261062259,-500.0,0.00048219,46]
[327634049,1716261062268,-501.92,0.00048219,46]
[327634050,1716261062277,-567.94,0.00048219,46]
[327634051,1716261062286,-500.0,0.00048219,46]
[327634052,1716261062296,-500.0,0.00048219,46]
[327634053,1716261062305,-602.75,0.00048219,46]
[327634054,1716261062314,-500.0,0.00048219,46]
[327634055,1716261062324,-500.0,0.00048219,46]
[327634056,1716261062333,-500.0,0.00048219,46]
[327634057,1716261062343,-500.0,0.00048219,46]
[327634058,1716261062352,-556.52,0.00048219,46]
[327634059,1716261062361,-500.0,0.00048219,46]
[327634060,1716261062370,-500.0,0.00048219,46]
[327634061,1716261062380,-500.0,0.00048219,20]
[327634062,1716261062389,-561.69,0.00048219,46]
[327634063,1716261062398,-502.32,0.00048219,46]
[327634064,1716261062407,-506.71,0.00048219,46]
[327634065,1716261062417,-500.0,0.00048219,46]
[327634066,1716261062426,-500.0,0.00048219,46]
[327634067,1716261062436,-1083.25,0.00048219,46]
[327634068,1716261062445,-593.03,0.00048219,46]
[327634069,1716261062454,-500.0,0.00048219,46]
[327634070,1716261062463,-204.7007881,0.00048219,46]
[327634071,1716261062472,-500.0,0.00048219,46]
[327634072,1716261062481,-500.0,0.00048219,46]
[327634073,1716261062491,-500.0,0.00048219,120]
[327634074,1716261062501,-663.13,0.00048219,46]
[327634075,1716261062510,-500.0,0.00048219,46]
[327634076,1716261062519,-831.4,0.00048219,46]
[327634077,1716261062529,-532.71,0.00048219,46]
[327634078,1716261062538,-2348.11,0.00048219,46]
[327634079,1716261062547,-500.0,0.00048219,46]
[327634080,1716261062556,-500.0,0.00048219,14]
[327634081,1716261062565,-607.4,0.00048219,46]
[327634082,1716261062574,-500.0,0.00048219,46]
[327634083,1716261062583,-500.0,0.00048219,46]
[327634084,1716261062592,-662.96,0.00048219,46]
[327634085,1716261062602,-500.0,0.00048219,46]
[327634086,1716261062611,-500.0,0.00048219,46]
[327634087,1716261062620,-587.81,0.00048219,46]
[327634088,1716261062630,-515.22,0.00048219,46]
[327634089,1716261062639,-500.0,0.00048219,2]
[327634090,1716261062648,-500.0,0.00048219,46]
[327634091,1716261062658,-500.0,0.00048219,46]
[327634092,1716261062667,-500.0,0.00048219,46]
[327634093,1716261062676,-670.15,0.00048219,46]
[327634094,1716261062685,-500.0,0.00048219,46]
[327634095,1716261062694,-810.47,0.00048219,46]
[327634096,1716261062704,-600.08,0.00048219,46]
[327634097,1716261062713,-500.0,0.00048219,46]
[327634098,1716261062722,-1611.07,0.00048219,46]
[327634099,1716261062732,-500.0,0.00048219,46]
[327634100,1716261062741,-2722.49,0.00048219,46]
[327634101,1716261062751,-500.0,0.00048219,46]
[327634102,1716261062760,-717.63,0.00048219,7]
[327634103,1716261062769,-502.42,0.00048219,46]
[327634104,1716261062779,-500.0,0.00048219,46]
[327634105,1716261062788,-579.46,0.00048219,46]
[327634106,1716261062798,-916.69,0.00048219,46]
[327634107,1716261062807,-500.0,0.00048219,46]
[327634108,1716261062816,-500.0,0.00048219,46]
[327634109,1716261062825,-500.0,0.00048219,46]
[327634110,1716261062834,-9370.84,0.00048219,46]
[327634111,1716261062843,-500.0,0.00048219,46]
[327634112,1716261062852,-695.34,0.00048219,46]
[327634113,1716261062862,-500.0,0.00048219,46]
[327634114,1716261062871,-876.56,0.00048219,46]
[327634115,1716261062880,-3994.89,0.00048219,46]
[327634116,1716261062889,-500.0,0.00048219,46]
[327634117,1716261062898,-500.0,0.00048219,46]
[327634118,1716261062908,-500.0,0.00048219,46]
[327634119,1716261062917,-583.62,0.00048219,46]
[327634120,1716261062926,-500.0,0.00048219,46]
[327634121,1716261062936,-500.0,0.00048219,46]
[327634122,1716261063034,-840.22,0.00048219,46]
[327634123,1716261063045,-2678.06,0.00048219,7]
[327634124,1716261063055,-479.32170575,0.00048219,46]
[327634125,1716261063081,-690.14607,0.00048219,46]
[327634126,1716261063356,-412.72625578,0.00027171,2]
[327634127,1716261063366,-252.40249294,0.00027457,2]
[327634331,1716262243489,-155.00930056,0.000165,2]
[327634334,1716262243499,-162.560857,0.00019314,2]
[327634339,1716262243511,-2387.045521,0.00019315,2]
[327634344,1716262243521,-11592.71602532,0.00019417,2]
[327634410,1716262245210,-155.0,0.0002,2]
[327634412,1716262245220,-625.16611465,0.00020812,2]
[327634414,1716262245230,-7417.15787091,0.00020891,2]
[327634416,1716262245240,-2825.84947425,0.00020912,2]
[327634418,1716262245250,-1717.20601312,0.00020913,2]
[327634420,1716262245260,-187.1961905,0.00024,2]
[327634423,1716262245269,-163.335884,0.00024384,2]
[327634427,1716262245279,-155.58127355,0.00027182,2]
[327634429,1716262245289,-155.0,0.00027457,2]
[327634431,1716262245299,-3978.76019136,0.00027457,2]
[327634432,1716262245309,-280.81585994,0.00028,2]
[327634434,1716262245319,-625.16611461,0.00028457,2]
[327634436,1716262245328,-163.335884,0.00030639,2]
[327634438,1716262245338,-3000.0,0.00035,2]
[327634440,1716262245348,-3000.0,0.00035,2]
[327634442,1716262245357,-151.0,0.00035519,2]
[327634444,1716262245367,-178.178128,0.00035616,120]
[327634446,1716262245377,-625.16611461,0.00036103,2]
[327634448,1716262245387,-302.0,0.00036115,4]
[327634450,1716262245397,-604.0,0.00036722,7]
[327634452,1716262245406,-163.335884,0.00036895,2]
[327634454,1716262245416,-213.54574192,0.00037,2]
[327634456,1716262245425,-1208.0,0.00037652,30]
[327634458,1716262245435,-155.0,0.00042465,7]
[327634460,1716262245444,-163.335884,0.00043151,2]
[327634463,1716262245454,-625.16611461,0.00043748,28]
[327634464,1716262245465,-178.78582669,0.000449,2]
[327634466,1716262245478,-177.1,0.0004499,30]
[327634468,1716262245488,-885.51,0.0004499,30]
[327634470,1716262245497,-164.15262508,0.00044999,120]
[327634472,1716262245507,-500.0,0.00044999,31]
[327634475,1716262245517,-212.55873137,0.00044999,120]
[327634477,1716262245526,-500.0,0.00044999,31]
[327634479,1716262245535,-500.0,0.00044999,31]
[327634481,1716262245545,-500.0,0.00044999,31]
[327634482,1716262245557,-500.0,0.00044999,31]
[327634484,1716262245566,-475.62191848,0.00044999,31]
[327634487,1716262245576,-195.00306341,0.00045,5]
[327634489,1716262245585,-155.0,0.00045,2]
[327634491,1716262245595,-5492.21983207,0.00045,4]
[327634493,1716262245605,-20900.0,0.00045,120]
[327634495,1716262245614,-1696.96969698,0.00045579,15]
[327634496,1716262245624,-150.0,0.00045845,2]
[327634499,1716262245634,-450.19101482,0.00046474,40]
[327634501,1716262245644,-2000.0,0.00046475,2]
[327634503,1716262245654,-1579.29,0.00046562,3]
[327634505,1716262245664,-1316.07,0.00046562,3]
[327634507,1716262245673,-1096.73,0.00046562,3]
[327634509,1716262245684,-39175.3854884,0.00046572,2]
[327634511,1716262245694,-500.0,0.00046575,40]
[327634513,1716262245703,-500.0,0.00046575,40]
[327634514,1716262245712,-500.0,0.00046575,40]
[327634515,1716262245722,-500.0,0.00046575,40]
[327634516,1716262245732,-617.82,0.00046575,40]
[327634517,1716262245741,-500.0,0.00046575,40]
[327634518,1716262245752,-500.0,0.00046575,40]
[327634519,1716262245761,-500.0,0.00046575,40]
[327634520,1716262245771,-500.0,0.00046575,40]
[327634521,1716262245781,-500.0,0.00046575,40]
[327634522,1716262245792,-500.0,0.00046575,40]
[327634523,1716262245802,-500.0,0.00046575,40]
[327634524,1716262245812,-500.0,0.00046575,40]
[327634525,1716262245822,-500.0,0.00046575,40]
[327634526,1716262245832,-500.0,0.00046575,40]
[327634527,1716262245842,-500.0,0.00046575,40]
[327634528,1716262245852,-500.0,0.00046575,40]
[327634529,1716262245861,-500.0,0.00046575,40]
[327634530,1716262245871,-500.0,0.00046575,40]
[327634531,1716262245881,-500.0,0.00046575,40]
[327634532,1716262245891,-500.0,0.00046575,20]
[327634533,1716262245902,-500.0,0.00046575,40]
[327634534,1716262245911,-500.0,0.00046575,40]
[327634535,1716262245921,-500.0,0.00046575,40]
[327634536,1716262245930,-500.0,0.00046575,40]
[327634537,1716262245940,-500.0,0.00046575,40]
[327634538,1716262245949,-500.0,0.00046575,40]
[327634539,1716262245959,-500.0,0.00046575,40]
[327634540,1716262245968,-306.47065045,0.00046575,40]
[327634541,1716262245984,-193.52934955,0.00046575,40]
[327634542,1716262245994,-602.07873294,0.00046575,40]
[327634543,1716262246004,-19.26423751,0.00046575,40]
[327634741,1716262247950,-529.90864898,0.00019888,2]
[327635099,1716263283252,156.4485373,9.999e-05,2]
[327635157,1716263432213,-155.04496304,0.000165,2]
[327635159,1716263432222,-156.4485373,0.00017599,2]
[327635161,1716263432231,-480.39015029,0.000176,2]
[327635440,1716263437822,-1488.89571383,0.000176,2]
[327635441,1716263437832,-8420.13197259,0.00018283,2]
[327635500,1716263442578,-14376.48686063,0.00018283,2]
[327635638,1716263444213,-2103.38116678,0.00018283,2]
[327635640,1716263444224,-162.560857,0.00019,2]
[327635642,1716263444233,-168.148609,0.00019178,2]
[327635644,1716263444242,-155.01860223,0.00019689,2]
[327635646,1716263444252,-1717.20601312,0.00019887,2]
[327635648,1716263444261,-3978.76019136,0.00019888,2]
[327635650,1716263444271,-312.58305734,0.000199,2]
[327635651,1716263444280,-155.01860223,0.0002,2]
[327635653,1716263444290,-155.01860223,0.00022,2]
[327635655,1716263444300,-224.08891712,0.00024,2]
[327635657,1716263444309,-163.335884,0.00024384,2]
[327635659,1716263444319,-312.5830573,0.00027044,2]
[327635661,1716263444329,-504.88970218,0.00028,2]
[327635664,1716263444339,-492.69206575,0.0003,30]
[327635666,1716263444348,-163.335884,0.00032427,2]
[327635667,1716263444358,-312.5830573,0.00034187,2]
[327635669,1716263444367,-154.99557805,0.00034878,2]
[327635671,1716263444376,-175.88853076,0.00035,4]
[327635673,1716263444386,-596.0,0.0004,120]
[327635675,1716263444396,-163.335884,0.0004047,2]
[327635677,1716263444405,-312.5830573,0.00041331,28]
[327635679,1716263444414,-353.14616788,0.00042,30]
[327635681,1716263444424,-155.01860223,0.00042465,7]
[327635683,1716263444433,-220.68520196,0.00044999,120]
[327635685,1716263444443,-5492.21983207,0.00045,4]
[327635687,1716263444452,-155.02170304,0.00045,2]
[327635689,1716263444462,-822.11284508,0.00045,20]
[327635691,1716263444471,-358.65083729,0.00045,111]
[327635693,1716263444481,-151.0,0.00045,120]
[327635695,1716263444491,-151.0438027,0.00045243,2]
[327635697,1716263444500,-500.0,0.00045499,31]
[327635699,1716263444509,-392.68657554,0.00045499,31]
[327635701,1716263444518,-48042.3968327,0.000455,10]
[327635703,1716263444528,-482.33,0.00045743,3]
[327635705,1716263444537,-833.55,0.00045743,3]
[327635707,1716263444546,-694.63,0.00045743,3]
[327635709,1716263444555,-578.85,0.00045743,3]
[327635711,1716263444564,-1000.0,0.00045753,60]
[327635713,1716263444573,-1000.0,0.00045753,61]
[327635715,1716263444582,-1000.0,0.00045753,62]
[327635717,1716263444591,-1000.0,0.00045753,63]
[327635719,1716263444600,-1000.0,0.00045753,64]
[327635721,1716263444610,-1000.0,0.00045753,65]
[327635723,1716263444619,-1000.0,0.00045753,66]
[327635725,1716263444628,-631.91,0.00045753,67]
[327635727,1716263444638,-151.0,0.00046,120]
[327635729,1716263444647,-2466.05124862,0.00046106,3]
[327635731,1716263444656,-1696.96969696,0.00046342,15]
[327635733,1716263444665,-2000.0,0.00046475,2]
[327635735,1716263444674,-417.32360569,0.00046512,2]
[327635737,1716263444684,-4224.07535635,0.00046541,2]
[327635739,1716263444693,-789.44130453,0.00046575,3]
[327637124,1716263601578,302.38073973,9.999e-05,2]
[327637127,1716264057823,156.4485373,9.999e-05,2]
[327637129,1716264329246,-155.04496304,0.000165,2]
[327637130,1716264329271,-162.560857,0.00019,2]
[327637131,1716264329296,-156.4485373,0.00019426,2]
[327637132,1716264329323,-204.94564266,0.00019435,2]
[327637180,1716264632406,-155.04496304,0.00019423,2]
[327637183,1716264632418,-162.560857,0.00019424,2]
[327637185,1716264632428,-156.4485373,0.00019425,2]
[327637187,1716264632439,-3978.76019136,0.00019435,2]
[327637188,1716264632449,-1283.69136745,0.00020369,2]
[327637556,1716264638193,-155.04496304,0.00020368,2]
[327637558,1716264638203,-984.62250705,0.00020369,2]
[327637560,1716264638215,-1370.39402028,0.00020369,2]
[327637563,1716264638227,-2135.55015116,0.00020369,2]
[327637755,1716264640364,-8759.72655987,0.00020369,2]
[327637764,1716264640436,-10366.01539419,0.00020369,2]
[327637766,1716264640446,-155.13988203,0.00020912,2]
[327637767,1716264640456,-191.46883117,0.00020912,2]
[327637769,1716264640466,-514.95135115,0.00020912,2]
[327637771,1716264640475,-1684.18553122,0.00020912,2]
[327637773,1716264640485,-284.35424035,0.00020912,2]
[327637775,1716264640494,-303.9128303,0.00020912,2]
[327637777,1716264640503,-586.4127612,0.00020912,2]
[327637779,1716264640513,-263.47065991,0.00020912,2]
[327637781,1716264640523,-945.58795248,0.00020912,2]
[327637783,1716264640532,-240.53290925,0.00020912,2]
[327637785,1716264640542,-155.38748809,0.00020912,2]
[327637786,1716264640552,-187.46211037,0.00020912,2]
[327637787,1716264640562,-2807.01482779,0.00020912,2]
[327637788,1716264640572,-155.17419685,0.00020912,2]
[327637789,1716264640582,-158.81260008,0.00020912,2]
[327637790,1716264640592,-2117.90986102,0.00020913,2]
[327637791,1716264640602,-163.335884,0.00024384,2]
[327637792,1716264640611,-206.8921426,0.00024384,2]
[327637793,1716264640621,-163.335884,0.0003462,2]
[327637794,1716264640631,-482.38,0.0003879,3]
[327637795,1716264640640,-401.98,0.0003879,3]
[327637796,1716264640649,-334.99,0.0003879,3]
[327637797,1716264640658,-382.57996095,0.00038799,15]
[327637798,1716264640667,-1664.8869379,0.000388,3]
[327637799,1716264640676,-6427.55572326,0.000388,3]
[327637800,1716264640686,-65669.91233265,0.000388,2]
[327637950,1716264643287,-1707.25875472,0.000388,2]
[327637952,1716264643299,-2428.06465339,0.000388,2]
[327637955,1716264643312,-2369.92097165,0.000388,2]
[327637957,1716264643324,-350.999985,0.000388,2]
[327638109,1716264644953,-259355.08038281,0.000388,2]
[327638115,1716264644972,-6542.478,0.000388,2]
[327638246,1716264646252,-215.19783806,0.00020913,2]
[327638248,1716264646267,-138.32948974,0.000388,2]
[327638250,1716264646278,-77863.26682538,0.000388,2]
[327639427,1716265418535,156.4485373,9.999e-05,2]
[327639428,1716265491676,175.35355822,9.999e-05,2]
[327639429,1716265505673,155.04341216,9.999e-05,2]
[327639431,1716265523793,155.0418613,9.999e-05,2]
[327639432,1716265541699,155.0418613,9.999e-05,2]
[327639434,1716265557694,155.04341216,9.999e-05,2]
[327639437,1716265575695,155.0418613,9.999e-05,2]
[327639438,1716265591683,170.94467943,9.999e-05,2]
[327639495,1716265832564,-155.04031048,0.000165,2]
[327639497,1716265832575,-7193.16840583,0.00018516,2]
[327639930,1716265844860,-17706.83159417,0.00018516,2]
[327639931,1716265844870,-156.4485373,0.00018997,2]
[327639932,1716265844880,-162.560857,0.00019,2]
[327639934,1716265844889,-1097.15940096,0.00019687,2]
[327639935,1716265844899,-349.26632079,0.00019687,2]
[327639936,1716265844910,-528.43613852,0.00019687,2]
[327639937,1716265844920,-1422.35770959,0.00019687,2]
[327639938,1716265844929,-194.83792219,0.00019687,2]
[327639939,1716265844939,-1064.44086015,0.00019687,2]
[327639952,1716265847875,-652.76515297,0.00019687,2]
[327639953,1716265847884,-309.65937468,0.00019687,2]
[327639954,1716265847894,-1596.57048682,0.00019687,2]
[327639955,1716265847903,-1338.92794901,0.00019688,2]
[327639956,1716265847912,-168.148609,0.00019694,2]
[327639957,1716265847921,-281.53989452,0.00020912,2]
[327639958,1716265847931,-714.95971981,0.00020912,2]
[327639959,1716265847940,-275.67960946,0.00020912,2]
[327639960,1716265847949,-281.33101558,0.00020912,2]
[327639961,1716265847958,-261.10136921,0.00020912,2]
[327639962,1716265847967,-224.08891712,0.00024,2]
[327639963,1716265847978,-163.335884,0.00024384,2]
[327639964,1716265847989,-2922.4894762,0.0002651,2]
[327639965,1716265847998,-504.88970218,0.00028,2]
[327639966,1716265848007,-492.69206575,0.0003,30]
[327639967,1716265848017,-12748.51003225,0.00035,2]
[327639968,1716265848026,-3000.0,0.00035,2]
[327639969,1716265848035,-3000.0,0.00035,2]
[327639970,1716265848045,-175.88853076,0.00035,4]
[327639971,1716265848054,-163.335884,0.00036895,2]
[327639972,1716265848063,-1333.72011217,0.00038,7]
[327639973,1716265848072,-4224.07535635,0.0003837,2]
[327639974,1716265848081,-263.57,0.00038473,3]
[327639975,1716265848091,-790.76,0.00038473,3]
[327639976,1716265848100,-417.32360569,0.00038614,2]
[327639977,1716265848109,-1000.0,0.00038699,2]
[327639978,1716265848119,-576.87731008,0.000387,2]
[327639979,1716265848128,-383.02279185,0.00038799,15]
[327639980,1716265848137,-624.88060288,0.00038799,15]
[327639981,1716265848147,-19464.00315605,0.000388,2]
[327639982,1716265848156,-285.04264856,0.000388,4]
[327639983,1716265848166,-5345.74305941,0.000388,4]
[327639984,1716265848175,-3000.0,0.000388,2]
[327639985,1716265848184,-210.82174763,0.000388,4]
[327639986,1716265848194,-527.14,0.00039843,3]
[327639987,1716265848203,-1631.17774528,0.0004,4]
[327639988,1716265848212,-1454.96739509,0.0004028,11]
[327639989,1716265848221,-576.87731008,0.00040644,2]
[327639990,1716265848231,-1026.57,0.00041791,3]
[327639991,1716265848241,-153.0,0.00041801,2]
[327639992,1716265848251,-153.0,0.00041801,2]
[327639993,1716265848260,-153.0,0.00041801,2]
[327639994,1716265848269,-353.14616788,0.00042,30]
[327639995,1716265848278,-155.04496304,0.00042465,7]
[327639996,1716265848287,-334.0,0.000425,48]
[327639997,1716265848297,-1454.96739509,0.0004256,11]
[327639998,1716265848307,-576.87731008,0.00042588,2]
[327639999,1716265848316,-151.03775944,0.00043831,2]
[327640000,1716265848326,-158.0,0.00044383,66]
[327640001,1716265848335,-576.87731008,0.00044531,2]
[327640002,1716265848344,-302.07551888,0.00044567,4]
[327640003,1716265848354,-570.32,0.0004483,3]
[327640004,1716265848363,-483.61782493,0.0004484,15]
[327640005,1716265848374,-1000.0,0.00044999,2]
[327640006,1716265848383,-5492.21983207,0.00045,4]
[327640007,1716265848393,-1343.0,0.00045,120]
[327640008,1716265848403,-155.04496304,0.00045,4]
[327640009,1716265848412,-151.0,0.00045,120]
[327640010,1716265848421,-150.4,0.00045171,30]
[327640011,1716265848431,-1000.0,0.00045753,60]
[327640012,1716265848440,-1000.0,0.00045753,61]
[327640013,1716265848450,-1000.0,0.00045753,62]
[327640014,1716265848460,-1000.0,0.00045753,63]
[327640015,1716265848469,-671.78,0.00045753,64]
[327640016,1716265848479,-155.04496304,0.000459,4]
[327640017,1716265848494,-151.0,0.00045973,120]
[327640018,1716265848503,-2466.05124862,0.00046106,3]
[327640019,1716265848512,-157.11057063,0.00046109,4]
[327640020,1716265848521,-2000.0,0.00046375,2]
[327640021,1716265848530,-150.4,0.00046407,30]
[327640022,1716265848540,-697.0,0.00046427,30]
[327640023,1716265848549,-1026.57,0.00046465,3]
[327640024,1716265848559,-684.38,0.00046465,3]
[327640025,1716265848569,-576.87731008,0.00046475,2]
[327640026,1716265848579,-88888.0,0.00046475,5]
[327640027,1716265848588,-1000.0,0.00046574,2]
[327640028,1716265848598,-1000.0,0.00046574,2]
[327640029,1716265848608,-1000.0,0.00046574,2]
[327640030,1716265848618,-1000.0,0.00046574,2]
[327640031,1716265848627,-1000.0,0.00046574,2]
[327640032,1716265848636,-1000.0,0.00046574,2]
[327640033,1716265848645,-500.0,0.00046574,60]
[327640034,1716265848656,-2497.33040684,0.00046575,3]
[327640035,1716265848667,-5481.07787442,0.00046575,3]
[327640036,1716265848677,-280.54041035,0.00046575,4]
[327640037,1716265848687,-537.10934785,0.00046575,40]
[327640038,1716265848696,-413.66789514,0.00046575,40]
[327640039,1716265848706,-523.56,0.00046575,40]
[327640040,1716265848715,-500.0,0.00046575,40]
[327640041,1716265848725,-500.0,0.00046575,40]
[327640042,1716265848735,-500.0,0.00046575,40]
[327640043,1716265848746,-504.16872652,0.00046575,40]
[327640044,1716265848757,-500.0,0.00046575,40]
[327640045,1716265848767,-500.0,0.00046575,40]
[327640046,1716265848777,-500.0,0.00046575,40]
[327640047,1716265848786,-500.0,0.00046575,40]
[327640048,1716265848796,-502.66588242,0.00046575,40]
[327640049,1716265848805,-1009.27,0.00046575,40]
[327640050,1716265848815,-500.0,0.00046575,40]
[327640051,1716265848824,-660.79,0.00046575,40]
[327640052,1716265848834,-500.0,0.00046575,40]
[327640053,1716265848843,-500.0,0.00046575,40]
[327640054,1716265848852,-502.87854424,0.00046575,40]
[327640055,1716265848861,-564.98,0.00046575,40]
[327640056,1716265848871,-609.78,0.00046575,40]
[327640057,1716265848880,-632.02,0.00046575,40]
[327640058,1716265848890,-618.99,0.00046575,40]
[327640059,1716265848900,-500.0,0.00046575,40]
[327640060,1716265848909,-500.0,0.00046575,40]
[327640061,1716265848919,-500.0,0.00046575,40]
[327640062,1716265848928,-500.0,0.00046575,40]
[327640063,1716265848937,-500.0,0.00046575,40]
[327640064,1716265848947,-500.0,0.00046575,40]
[327640065,1716265848957,-500.0,0.00046575,40]
[327640066,1716265848966,-548.71,0.00046575,40]
[327640067,1716265848976,-705.16,0.00046575,40]
[327640068,1716265848987,-500.0,0.00046575,40]
[327640069,1716265848996,-500.0,0.00046575,40]